bitfinex/quotes_ETHUSD_20220212
["timestamp","ask_amount","ask_price","bid_price","bid_amount"]
[1644705454912,0.8578757,2917.8,2917.7,1.48545129]
[1644705455314,0.01020167,2919.2,2917.8,0.60691]
[1644705455571,0.1713,2919.5,2918.4,0.02380873]
[1644705455761,0.1713,2919.6,2918.4,0.02380873]
[1644705455961,0.1711,2919.8,2918.4,0.02380873]
[1644705456161,0.1711,2919.3,2918.4,0.02380873]
[1644705456967,0.1711,2919.3,2918.7,0.00394151]
[1644705457767,0.1711,2919.3,2918.6,0.85628]
[1644705457768,0.1211,2919.3,2918.6,0.85628]
[1644705457968,5.9809,2919.9,2918.7,0.1711]
[1644705457969,0.1711,2919.8,2918.7,0.1711]
[1644705458169,0.1711,2919.8,2918.9,0.00394131]
[1644705458367,0.1711,2920.0,2918.9,0.00394131]
[1644705458568,0.001,2920.2,2918.9,0.00394131]
[1644705458569,0.1711,2920.1,2918.9,0.00394131]
[1644705458768,0.1711,2920.1,2919.0,0.85618]
[1644705458967,3.09839613,2920.3,2919.0,0.85618]
[1644705458968,5.1711,2920.2,2919.0,0.85618]
[1644705459170,0.1711,2920.2,2918.6,0.501]
[1644705459408,0.1711,2920.2,2919.0,0.01019866]
[1644705459409,0.01019747,2919.3,2919.0,0.01019866]
[1644705459607,0.11019747,2919.3,2919.0,0.01019866]
[1644705460207,0.1,2919.3,2918.6,0.52311903]
[1644705460507,0.00387297,2919.2,2919.0,0.01019866]
[1644705460709,0.11019747,2919.3,2919.0,0.01019866]
[1644705460908,0.00387297,2919.2,2919.0,0.01019866]
[1644705461109,0.11019747,2919.3,2919.0,0.01019866]
[1644705461312,0.00387297,2919.2,2919.0,0.01019866]
[1644705461509,0.11019747,2919.3,2918.7,0.1711]
[1644705461510,0.1,2919.3,2918.7,0.1711]
[1644705461710,0.00387297,2919.2,2919.0,0.01019866]
[1644705461914,0.11019747,2919.3,2919.0,0.01019866]
[1644705462112,0.00387297,2919.2,2919.0,0.01123565]
[1644705462316,0.11019747,2919.3,2919.0,0.01123565]
[1644705462513,0.00387297,2919.2,2919.0,0.01123565]
[1644705462713,0.11019747,2919.3,2919.1,0.1711]
[1644705462714,0.1,2919.3,2919.1,0.1711]
[1644705462913,0.11407044,2919.3,2919.1,0.1711]
[1644705463159,0.11019747,2919.3,2919.0,0.01123565]
[1644705463560,0.11019747,2919.3,2919.0,0.18332694]
[1644705463758,0.11019747,2919.3,2919.1,0.1711]
[1644705463958,0.1,2919.3,2919.1,0.1711]
[1644705464158,0.11019747,2919.3,2919.1,0.1711]
[1644705465058,0.1,2919.3,2919.1,0.1711]
[1644705465259,0.1101974,2919.3,2919.1,0.1711]
[1644705466360,0.1,2919.3,2919.1,0.1711]
[1644705466559,0.1101974,2919.3,2919.1,0.1711]
[1644705467011,0.1101974,2919.3,2919.1,0.1211]
[1644705467209,0.1101974,2919.3,2919.2,0.85607]
[1644705467414,0.1,2919.3,2919.2,0.85607]
[1644705467810,0.1101974,2919.3,2919.2,0.85607]
[1644705468609,0.1,2919.3,2919.2,0.85607]
[1644705468811,0.00387297,2920.1,2919.3,0.35]
[1644705469013,0.06019733,2919.4,2919.3,0.35]
[1644705469813,0.05,2919.4,2919.3,0.35]
[1644705470657,0.05,2919.4,2919.3,0.25]
[1644705471256,0.05,2919.4,2919.3,0.4211]
[1644705475210,0.13541349,2920.4,2919.3,0.25]
[1644705475407,6.84867,2923.3,2919.3,0.25]
[1644705475408,0.00388668,2920.3,2919.3,0.25]
[1644705475610,0.00388668,2920.9,2919.3,0.25]
[1644705475810,0.17498668,2920.7,2919.3,0.25]
[1644705476008,11.37440529,2921.1,2919.3,0.25]
[1644705476009,0.17498668,2920.9,2919.3,0.25]
[1644705476208,0.00388668,2920.6,2919.3,0.25]
[1644705476409,0.1711,2920.7,2919.3,0.25]
[1644705476611,0.00388668,2920.6,2919.3,0.25]
[1644705476915,0.00388668,2920.6,2919.4,0.1711]
[1644705477117,1.46141346,2921.0,2919.4,0.1711]
[1644705477415,1.45752678,2920.9,2919.8,0.00397826]
[1644705477615,0.00793847,2919.5,2919.4,0.1711]
[1644705478661,11.18234376,2921.1,2919.4,0.1711]
[1644705478858,0.63866726,2921.0,2919.4,0.1711]
[1644705479058,0.63866726,2921.0,2919.5,0.17209129]
[1644705479259,10.87340529,2921.1,2919.6,2.21284]
[1644705479260,11.51207255,2921.1,2919.6,2.21284]
[1644705479459,11.51207255,2921.1,2919.6,2.34084]
[1644705479659,11.51207255,2921.1,2919.6,2.51613129]
[1644705479859,11.51207255,2921.1,2919.6,2.51453129]
[1644705480058,0.1711,2921.0,2919.6,2.34084]
[1644705480261,0.1711,2921.0,2919.6,2.21284]
[1644705480463,0.1711,2921.0,2919.6,0.501]
[1644705480962,0.1711,2921.0,2919.7,0.00397846]
[1644705481812,0.1711,2921.0,2919.6,0.6721]
[1644705482019,0.63866726,2920.9,2919.6,0.6721]
[1644705482219,0.01019584,2920.5,2919.7,0.01019878]
[1644705483021,0.63866726,2920.9,2919.6,0.6721]
[1644705483418,0.01019618,2920.2,2919.7,0.01019825]
[1644705483619,0.01019618,2920.2,2919.8,0.1711]
[1644705484221,0.76074073,2921.0,2919.8,0.1711]
[1644705484420,0.76074073,2921.0,2919.7,0.1711]
[1644705484620,0.01019632,2920.1,2919.7,0.18129804]
[1644705485019,0.01019632,2920.1,2919.8,0.02067202]
[1644705485220,0.01019632,2920.1,2919.9,0.1711]
[1644705485420,0.63866726,2921.0,2919.9,0.1711]
[1644705485856,0.63866726,2920.9,2919.9,1.02702]
[1644705486157,0.63866726,2921.0,2919.9,1.02702]
[1644705486359,0.73866726,2921.1,2919.9,1.02702]
[1644705486755,0.63866726,2921.0,2919.9,1.02702]
[1644705486961,0.01019459,2920.9,2920.4,0.01019666]
[1644705487960,0.63866726,2921.0,2919.9,1.02702]
[1644705488163,0.01019491,2920.9,2920.5,0.01019645]
[1644705489160,0.63866726,2921.0,2919.9,0.1711]
[1644705489409,0.01019502,2920.9,2920.6,0.01019638]
[1644705490307,0.1,2921.1,2920.0,0.02070886]
[1644705490507,0.1,2921.1,2920.6,0.00401242]
[1644705490715,0.10388808,2921.1,2920.6,0.00401242]
[1644705490907,0.1,2921.1,2920.6,0.00401242]
[1644705491107,0.00388808,2921.0,2920.6,0.00401242]
[1644705491307,0.1,2921.1,2920.6,0.00401242]
[1644705491508,0.1,2921.1,2920.0,0.02070886]
[1644705491808,0.01018824,2920.9,2920.7,0.01018926]
[1644705492612,0.73866726,2921.1,2920.6,0.00104282]
[1644705492812,0.00388808,2921.0,2920.6,0.00104282]
[1644705493063,0.01018824,2920.9,2920.7,0.01018926]
[1644705493862,0.74255534,2921.1,2920.6,0.00104282]
[1644705493864,0.10388808,2921.1,2920.6,0.00104282]
[1644705494062,0.01018824,2920.9,2920.7,0.01018926]
[1644705495064,0.01018824,2920.9,2920.6,0.00104282]
[1644705495065,0.1,2921.1,2920.6,0.00104282]
[1644705495869,0.601,2921.1,2920.6,0.00104282]
[1644705496067,0.00388808,2921.0,2920.6,0.00104282]
[1644705496567,0.501,2920.9,2920.7,0.01018919]
[1644705497717,0.07408881,2920.1,2919.9,0.1711]
[1644705497917,0.07408881,2920.1,2919.7,0.1711]
[1644705498318,0.02408881,2920.1,2919.6,0.1711]
[1644705498916,0.02408881,2920.1,2919.7,0.01019057]
[1644705499116,0.02408881,2920.1,2919.8,0.1711]
[1644705500217,0.02408881,2920.1,2919.8,0.01019043]
[1644705500416,0.47897843,2920.9,2919.8,0.01019043]
[1644705500664,1.45735549,2920.8,2919.8,0.01019043]
[1644705500864,1.95835549,2920.8,2919.8,0.01019043]
[1644705501070,1.45735549,2920.7,2919.6,0.1711]
[1644705501262,1.45735549,2920.7,2920.2,0.01018995]
[1644705502266,1.45735549,2920.7,2919.7,0.00093829]
[1644705502467,0.1711,2920.6,2919.7,0.00093829]
[1644705502667,1.45735549,2920.5,2919.7,0.00093829]
[1644705503868,2.11026445,2920.5,2919.7,0.00093829]
[1644705504068,1.45735549,2920.4,2919.7,0.00093829]
[1644705504305,1.45735549,2920.3,2919.7,0.00093829]
[1644705504514,1.45735549,2920.2,2919.7,0.00093829]
[1644705504813,1.45735549,2920.1,2919.7,0.00093829]
[1644705505012,1.45735549,2920.0,2919.9,0.010185]
[1644705505412,2.11026445,2920.5,2919.9,0.010185]
[1644705505612,1.45735549,2920.4,2919.9,0.010185]
[1644705505813,1.45735549,2920.3,2919.9,0.010185]
[1644705506113,1.45735549,2920.3,2919.7,0.00093829]
[1644705506114,1.95835549,2920.2,2919.7,0.00093829]
[1644705506318,0.501,2920.2,2920.1,0.01018472]
[1644705506715,1.95842659,2920.2,2920.1,0.01018472]
[1644705507114,1.95842659,2920.2,2919.7,0.00093829]
[1644705507317,1.45742659,2920.1,2920.0,0.01018479]
[1644705507514,1.95842659,2920.1,2920.0,0.01018479]
[1644705507914,1.95842659,2920.1,2919.7,3.829e-05]
[1644705508167,1.62852659,2920.0,2918.5,0.1711]
[1644705508468,1.95842659,2919.9,2918.7,0.25]
[1644705508668,1.62852659,2919.8,2918.7,0.25]
[1644705508867,1.95842659,2919.7,2918.7,0.25]
[1644705509064,1.45742659,2919.6,2918.7,0.25]
[1644705509265,0.501,2919.5,2918.7,0.25]
[1644705509466,0.501,2919.5,2918.0,3.6711]
[1644705509467,1.45742659,2919.4,2918.0,3.6711]
[1644705509668,0.501,2919.3,2918.0,0.1711]
[1644705509867,1.45742659,2919.2,2919.0,0.0040068]
[1644705510268,0.501,2919.1,2919.0,0.0040068]
[1644705510471,1.95842659,2919.1,2919.0,0.0040068]
[1644705510768,1.95842659,2919.1,2918.0,0.1711]
[1644705510769,2.12952659,2919.1,2918.0,0.1711]
[1644705510969,1.45742659,2919.0,2918.9,0.00400694]
[1644705511167,1.95842659,2919.0,2918.5,3.709e-05]
[1644705511370,1.62872659,2918.9,2918.5,3.709e-05]
[1644705511568,1.95876889,2918.8,2918.5,3.709e-05]
[1644705511807,0.501,2918.8,2918.5,3.709e-05]
[1644705512012,0.501,2918.8,2918.0,0.1711]
[1644705512216,1.62922579,2918.7,2918.0,0.1711]
[1644705512415,1.45792579,2918.6,2918.0,0.1711]
[1644705512612,1.95892579,2918.6,2917.4,0.38819997]
[1644705512812,0.501,2918.6,2917.4,0.38819997]
[1644705513012,0.501,2918.6,2917.1,0.1713]
[1644705513212,0.501,2918.6,2916.9,0.1713]
[1644705513414,1.45801488,2918.5,2916.8,0.1713]
[1644705513713,0.501,2918.4,2916.7,0.1713]
[1644705514015,0.501,2918.4,2916.7,0.1213]
[1644705514016,6.258,2918.2,2916.7,0.1213]
[1644705514214,0.6723,2918.1,2916.6,0.25]
[1644705514810,0.6723,2918.1,2917.4,0.0040054]
[1644705515669,0.6723,2918.1,2916.6,0.25]
[1644705515868,0.6723,2918.1,2916.7,0.1713]
[1644705516067,0.6723,2918.1,2916.6,0.25]
[1644705516068,6.258,2917.8,2916.0,0.1713]
[1644705516268,0.501,2917.7,2916.5,0.1713]
[1644705516470,0.6723,2917.7,2916.4,3.62296749]
[1644705516670,0.6723,2917.7,2916.1,0.1713]
[1644705516869,0.6723,2917.7,2917.0,0.00084511]
[1644705518470,0.6723,2917.7,2916.4,1.55493721]
[1644705518668,0.6723,2917.7,2916.1,0.1713]
[1644705518870,0.6723,2917.7,2916.4,1.31617306]
[1644705519071,0.6723,2917.7,2916.1,0.1713]
[1644705519510,0.6723,2917.7,2916.8,0.00398593]
[1644705520210,0.6723,2917.7,2916.1,0.16658229]
[1644705520613,6.258,2917.5,2917.1,0.00398545]
[1644705520813,0.6723,2917.4,2917.1,0.00398545]
[1644705521012,0.6723,2917.4,2916.1,0.13651195]
[1644705522113,0.6723,2917.4,2917.2,0.00093143]
[1644705522514,0.6723,2917.4,2916.1,0.08744338]
[1644705522715,5.67130529,2917.4,2916.1,0.08744338]
[1644705522914,5.6775121,2917.4,2916.1,0.08744338]
[1644705523962,5.67130529,2917.4,2916.1,0.08744338]
[1644705524162,0.01016259,2916.9,2916.6,0.01016385]
[1644705524361,0.501,2916.8,2916.6,0.01016385]
[1644705525165,0.501,2916.8,2916.1,0.03969055]
[1644705525566,0.501,2916.8,2916.6,0.01016374]
[1644705526365,0.501,2916.8,2916.1,0.03969055]
[1644705526814,0.501,2916.8,2916.3,0.00082421]
[1644705529021,0.251,2916.8,2916.4,0.01015861]
[1644705529924,0.28839499,2916.8,2916.3,0.00082421]
[1644705533771,0.28839499,2916.8,2916.4,0.01015326]
[1644705534816,0.28839499,2916.8,2916.3,0.00082421]
[1644705535016,0.28839499,2916.8,2916.5,0.0101532]
[1644705535916,0.02030639,2916.4,2916.3,0.00082421]
[1644705536117,0.52130639,2916.4,2916.3,0.00082421]
[1644705537122,0.52130639,2916.4,2916.1,0.95082421]
[1644705538065,0.47130639,2916.4,2916.1,0.95082421]
[1644705538674,0.47130639,2916.4,2916.1,0.96097254]
[1644705539471,0.47130639,2916.4,2916.1,0.95082421]
[1644705539873,0.47130639,2916.4,2916.1,0.96097254]
[1644705540673,0.47130639,2916.4,2916.1,0.95082421]
[1644705541172,0.47130639,2916.4,2916.1,0.96097254]
[1644705541377,0.47130639,2916.4,2915.6,0.04059999]
[1644705541378,6.258,2916.2,2915.6,0.04059999]
[1644705541572,5.50000529,2916.1,2915.6,0.04059999]
[1644705541810,6.258,2915.8,2915.6,0.04059999]
[1644705542015,0.501,2915.7,2914.2,3.5]
[1644705542215,0.501,2915.7,2914.5,0.25]
[1644705542414,0.501,2915.7,2914.0,4.7244]
[1644705542615,0.6725,2915.7,2914.0,4.7244]
[1644705542819,0.6725,2915.7,2914.0,1.2244]
[1644705543018,0.6725,2915.7,2913.9,10.5711]
[1644705543217,0.6725,2915.7,2914.0,3.6715]
[1644705543417,0.6725,2915.7,2914.7,0.01015021]
[1644705544017,6.258,2915.5,2914.7,0.01015021]
[1644705544219,0.6725,2915.4,2914.7,0.01015021]
[1644705544517,0.6725,2915.4,2914.0,0.1715]
[1644705544518,0.6725,2915.4,2915.0,0.01014988]
[1644705545321,0.6725,2915.4,2914.5,0.00075548]
[1644705545563,0.6725,2915.4,2914.0,0.1715]
[1644705546061,0.6225,2915.4,2914.0,0.1715]
[1644705546261,1.2225,2915.4,2914.0,0.1715]
[1644705546462,4.99900529,2915.3,2914.0,0.1715]
[1644705546662,2.2225,2915.4,2913.9,0.25]
[1644705546663,6.258,2915.1,2913.9,0.25]
[1644705546864,0.501,2915.0,2913.9,0.25]
[1644705547670,0.501,2915.0,2913.9,0.2]
[1644705548365,0.501,2915.0,2914.3,0.01015075]
[1644705548366,0.01014956,2914.6,2914.3,0.01015075]
[1644705548566,0.501,2914.5,2914.3,0.01015075]
[1644705549310,0.501,2914.5,2913.7,0.1715]
[1644705549511,0.501,2914.5,2914.3,0.01015082]
[1644705550115,0.501,2914.5,2913.1,10.90086285]
[1644705551916,0.00630522,2913.9,2913.1,10.90086285]
[1644705552116,0.00630522,2913.9,2913.2,0.1215]
[1644705552719,0.501,2914.5,2913.2,0.1215]
[1644705553168,0.01015837,2913.7,2913.4,0.01015956]
[1644705553967,0.501,2914.5,2913.2,0.1215]
[1644705554165,0.01015837,2913.7,2913.4,0.01015956]
[1644705554365,0.41115837,2914.5,2913.4,0.01015956]
[1644705554765,0.44645575,2914.5,2913.1,10.71035956]
[1644705555866,0.74645575,2914.5,2913.1,10.71035956]
[1644705556068,0.44645575,2914.5,2913.1,10.71035956]
[1644705556267,0.74645575,2914.5,2913.1,10.71035956]
[1644705556667,0.00629761,2913.9,2913.1,10.71035956]
[1644705557622,0.501,2914.0,2913.1,10.71035956]
[1644705557818,0.01015083,2913.7,2913.3,0.01015237]
[1644705558018,0.01015083,2913.7,2913.4,0.1716]
[1644705558221,0.01015083,2913.7,2913.3,0.01015237]
[1644705558820,0.501,2914.0,2913.1,10.71035956]
[1644705559022,0.01015083,2913.7,2913.3,0.01015237]
[1644705559924,0.501,2914.0,2913.1,10.71035956]
[1644705560322,0.01015083,2913.7,2913.3,0.01015237]
[1644705561161,0.501,2914.0,2913.1,10.71035956]
[1644705561362,0.01015083,2913.7,2913.3,0.01015237]
[1644705561762,0.501,2913.6,2913.3,0.01015237]
[1644705562366,0.501,2913.6,2912.6,0.30979997]
[1644705562566,0.501,2913.6,2913.3,0.01015226]
[1644705563668,0.501,2913.6,2912.6,0.13819997]
[1644705563967,0.501,2913.6,2913.3,0.01015226]
[1644705564815,0.501,2913.6,2912.6,0.13819997]
[1644705565012,0.501,2913.6,2913.3,0.01015226]
[1644705565914,0.501,2913.6,2912.6,0.13819997]
[1644705566312,0.501,2913.6,2912.6,0.04835223]
[1644705566714,0.501,2913.6,2913.4,0.0009654]
[1644705568567,0.50730522,2913.6,2913.4,0.0009654]
[1644705569569,0.501,2913.6,2913.4,0.0009654]
[1644705569767,0.511151,2913.6,2913.4,0.0009654]
[1644705569968,0.1716,2913.5,2913.4,0.0009654]
[1644705570169,0.6726,2913.5,2913.4,0.0009654]
[1644705572019,0.6726,2913.5,2912.4,0.25]
[1644705572220,0.6726,2913.5,2913.2,0.01015261]
[1644705573221,0.6726,2913.5,2912.3,8.3052]
[1644705573423,0.6827512,2913.5,2913.2,0.01015239]
[1644705574426,0.6827512,2913.5,2912.4,0.04061972]
[1644705574427,0.6726,2913.5,2912.3,8.3052]
[1644705574624,0.6827512,2913.5,2913.2,0.01015239]
[1644705575666,0.6726,2913.5,2912.3,8.3052]
[1644705575867,0.6827512,2913.5,2913.2,0.01015239]
[1644705576067,0.5111512,2913.5,2913.2,0.01015239]
[1644705576767,0.501,2913.5,2913.3,0.00096458]
[1644705576973,0.50730522,2913.5,2913.3,0.00096458]
[1644705577973,0.501,2913.5,2913.3,0.00096458]
[1644705578172,0.51112478,2913.5,2913.3,0.00096458]
[1644705578573,6.76912478,2913.5,2913.3,0.00096458]
[1644705578978,0.02218144,2913.1,2912.4,0.0405147]
[1644705579173,0.451,2913.0,2912.1,3.1152]
[1644705579416,0.451,2913.0,2912.4,0.0405147]
[1644705580421,0.451,2913.0,2912.1,3.1152]
[1644705580617,0.451,2913.0,2912.1,3.11630103]
[1644705581719,0.6226,2913.0,2912.1,3.11630103]
[1644705581927,0.6226,2913.0,2912.1,0.00110103]
[1644705581928,1.48116,2913.0,2912.1,0.00110103]
[1644705582124,1.48116,2913.0,2911.9,0.00110103]
[1644705583063,1.48116,2913.0,2912.3,0.01012704]
[1644705583867,0.6226,2913.0,2911.7,1.13004231]
[1644705584070,0.6226,2913.0,2911.8,0.00134209]
[1644705584268,0.9226,2913.0,2912.5,0.01012678]
[1644705584469,0.6226,2913.0,2912.5,0.01012678]
[1644705584668,6.258,2912.9,2912.5,0.01012678]
[1644705584868,0.6726,2912.8,2912.5,0.01012678]
[1644705585269,0.6726,2912.8,2911.8,0.00134209]
[1644705586068,0.9726,2912.8,2911.8,0.00134209]
[1644705587117,1.83128,2912.8,2911.6,3.78734209]
[1644705587317,2.83128,2912.8,2911.6,3.78734209]
[1644705587817,2.83128,2912.8,2911.8,0.01012841]
[1644705587818,0.01012636,2912.3,2911.8,0.01012841]
[1644705588016,0.6726,2912.2,2911.8,0.01012841]
[1644705588818,0.6726,2912.2,2911.5,0.25]
[1644705589018,0.01012662,2912.1,2911.8,0.01012798]
[1644705589418,0.501,2912.0,2911.8,0.01012798]
[1644705590016,0.501,2912.0,2910.8,0.25]
[1644705590220,0.501,2912.0,2911.8,0.01012776]
[1644705590221,0.51112675,2912.0,2911.8,0.01012776]
[1644705590417,0.51112675,2912.0,2910.8,0.20064893]
[1644705590666,0.51112675,2912.0,2910.8,7.68064893]
[1644705591067,0.51112675,2912.0,2910.8,0.20064893]
[1644705591270,0.501,2912.0,2910.8,0.20064893]
[1644705591467,0.801,2912.0,2910.8,0.20064893]
[1644705591667,3.77503654,2911.9,2910.8,0.20064893]
[1644705591874,0.501,2911.8,2910.8,0.20064893]
[1644705592070,3.54134581,2911.7,2910.8,0.20064893]
[1644705592271,0.501,2911.6,2910.3,7.48]
[1644705592570,0.501,2911.6,2910.3,7.65209129]
[1644705592571,3.72921127,2911.5,2910.3,7.65209129]
[1644705592771,0.501,2911.4,2910.9,0.00376708]
[1644705593573,0.501,2911.4,2910.4,0.1717]
[1644705593973,3.33283926,2911.3,2910.9,0.00376708]
[1644705594173,0.501,2911.4,2910.9,0.00376708]
[1644705594420,3.3312937,2911.3,2910.9,0.00376708]
[1644705594617,0.501,2911.4,2910.9,0.00376708]
[1644705594818,0.501,2911.4,2910.3,7.65209129]
[1644705594819,0.501,2911.4,2910.3,7.82369129]
[1644705595015,0.01011737,2911.2,2910.9,0.01011873]
[1644705596017,0.501,2911.4,2910.3,7.82369129]
[1644705596217,0.501,2911.4,2910.9,0.01011862]
[1644705596218,0.01011744,2911.2,2910.9,0.01011862]
[1644705597120,0.501,2911.4,2910.3,7.82369129]
[1644705597522,0.01011744,2911.2,2910.9,0.01011862]
[1644705598364,0.501,2911.4,2910.3,7.82369129]
[1644705598564,0.501,2911.4,2910.3,7.65209129]
[1644705598768,0.01011744,2911.2,2910.9,0.01011862]
[1644705599569,0.501,2911.4,2910.5,0.00134255]
[1644705600066,0.01011744,2911.2,2910.9,0.01011862]
[1644705600767,3.33841261,2911.3,2910.5,0.00134255]
[1644705601067,0.01011744,2911.2,2910.9,0.01011862]
[1644705602124,0.501,2911.4,2910.5,0.00134255]
[1644705602319,0.01011744,2911.2,2910.9,0.01011862]
[1644705603322,3.31260249,2911.3,2910.5,0.00134255]
[1644705603524,0.01011744,2911.2,2910.9,0.01011862]
[1644705604520,0.501,2911.4,2910.5,0.00134255]
[1644705604723,0.01011744,2911.2,2910.9,0.01011862]
[1644705605567,0.501,2911.4,2910.5,0.00134255]
[1644705605969,0.01011744,2911.2,2910.9,0.01011862]
[1644705606769,0.501,2911.4,2910.5,0.00134255]
[1644705607172,0.01011744,2911.2,2910.9,0.01011862]
[1644705608073,0.501,2911.4,2910.4,1.12294255]
[1644705608271,0.01011744,2911.2,2910.9,0.01011862]
[1644705609171,0.501,2911.4,2910.4,1.12294255]
[1644705609414,0.01011744,2911.2,2910.9,0.01011862]
[1644705610415,3.30350287,2911.3,2910.4,0.12294255]
[1644705610416,3.40162721,2911.3,2910.4,0.12294255]
[1644705610617,0.01011744,2911.2,2910.9,0.01011862]
[1644705611621,3.3001269,2911.3,2910.4,0.1716]
[1644705611823,0.01011744,2911.2,2910.9,0.01011862]
[1644705612921,4.0462353,2911.6,2910.4,0.1716]
[1644705613164,0.01011744,2911.2,2910.9,0.01011862]
[1644705613966,0.01011744,2911.2,2910.4,0.1716]
[1644705614166,4.0462353,2911.6,2910.4,0.1716]
[1644705614367,0.01011744,2911.2,2910.9,0.01011862]
[1644705615266,4.9052053,2911.6,2910.4,0.1716]
[1644705615467,0.01011744,2911.2,2910.9,0.01011862]
[1644705616368,3.35487943,2911.2,2910.4,0.1716]
[1644705616568,3.35487943,2911.2,2910.5,0.00134263]
[1644705616815,3.36499687,2911.2,2910.9,0.01011862]
[1644705617622,3.35487943,2911.2,2910.1,3.6361]
[1644705618021,3.36499687,2911.2,2910.9,0.01011862]
[1644705618720,3.35791874,2911.2,2910.9,0.01011862]
[1644705618919,3.3478013,2911.2,2910.1,3.6361]
[1644705619121,3.35791874,2911.2,2910.9,0.01011862]
[1644705619920,0.501,2911.1,2910.9,0.01011862]
[1644705620122,0.501,2911.1,2910.1,3.6765846]
[1644705620123,3.31024433,2911.0,2910.2,0.1716]
[1644705620420,0.501,2910.9,2910.2,0.1716]
[1644705621564,0.501,2910.9,2910.2,0.13171909]
[1644705622368,3.31654147,2910.8,2910.2,0.13171909]
[1644705622569,0.501,2910.9,2910.2,0.13306109]
[1644705622771,0.501,2910.9,2910.2,0.001342]
[1644705622968,0.501,2910.9,2910.3,0.001342]
[1644705623970,0.00639615,2910.8,2910.3,0.001342]
[1644705624317,0.00639615,2910.8,2910.0,0.001342]
[1644705624318,4.21209341,2910.8,2910.0,0.001342]
[1644705624615,5.54311341,2910.8,2910.0,0.001342]
[1644705624816,5.53671726,2910.8,2910.3,0.01973269]
[1644705625018,5.36491726,2910.8,2910.3,0.01973269]
[1644705626417,5.36491726,2910.8,2910.3,0.02346217]
[1644705627222,5.36491726,2910.8,2910.3,0.01973269]
[1644705627421,5.36491726,2910.8,2910.3,0.02346217]
[1644705628468,5.36491726,2910.8,2910.3,0.01973269]
[1644705628667,5.37504202,2910.8,2910.3,0.02985951]
[1644705629567,5.37504202,2910.8,2910.0,0.001342]
[1644705629768,5.36491726,2910.8,2910.0,0.001342]
[1644705629969,5.37504202,2910.8,2910.3,0.01012682]
[1644705630369,5.32504202,2910.8,2910.3,0.01012682]
[1644705630969,5.31491726,2910.8,2909.6,0.001342]
[1644705631174,5.32504202,2910.8,2910.3,0.01012682]
[1644705632020,5.31491726,2910.8,2909.6,0.001342]
[1644705632222,5.32504202,2910.8,2910.3,0.01012682]
[1644705633221,5.31491726,2910.8,2909.6,0.001342]
[1644705633721,5.32504202,2910.8,2910.3,0.01012682]
[1644705634520,5.32504202,2910.8,2909.6,0.001342]
[1644705634521,5.31491726,2910.8,2909.6,0.001342]
[1644705634722,5.32504202,2910.8,2910.3,0.01012682]
[1644705634923,0.1716,2910.7,2910.3,0.01012682]
[1644705635123,0.501,2910.6,2910.3,0.01012682]
[1644705635323,3.54844078,2910.5,2910.3,0.01012682]
[1644705635574,0.501,2910.4,2910.3,0.01012682]
[1644705635773,0.501,2910.4,2909.6,0.001342]
[1644705635973,0.501,2910.4,2910.3,0.01012649]
[1644705636773,4.25798424,2910.4,2910.3,0.01012649]
[1644705636973,4.25798424,2910.4,2909.6,0.001342]
[1644705636974,4.55798424,2910.4,2909.6,0.001342]
[1644705637173,4.85798424,2910.4,2910.2,0.01012655]
[1644705637374,1.101,2910.4,2910.2,0.01012655]
[1644705637574,3.3723351,2910.3,2910.2,0.01012655]
[1644705637774,3.8733351,2910.3,2910.2,0.01012655]
[1644705637973,3.8733351,2910.3,2909.6,0.001342]
[1644705638377,3.8733351,2910.3,2910.1,0.01012668]
[1644705638573,0.501,2910.3,2910.1,0.01012668]
[1644705638975,4.001,2910.3,2910.1,0.01012668]
[1644705639174,3.3397393,2910.2,2910.1,0.01012668]
[1644705639420,0.501,2910.2,2909.6,0.001342]
[1644705639621,3.85977703,2910.2,2910.1,0.01012674]
[1644705639825,0.501,2910.2,2910.1,0.01012674]
[1644705640420,3.82623033,2910.2,2909.6,0.001342]
[1644705640621,0.501,2910.2,2909.6,0.001342]
[1644705640823,0.501,2910.2,2910.0,0.01012681]
[1644705641620,0.501,2910.2,2909.6,0.001342]
[1644705642025,0.501,2910.2,2910.0,0.01012687]
[1644705642825,0.501,2910.2,2909.6,0.001342]
[1644705643065,0.501,2910.2,2910.0,0.01012687]
[1644705644171,0.501,2910.2,2909.6,0.001342]
[1644705644371,0.501,2910.2,2910.0,0.01012687]
[1644705645171,0.501,2910.2,2909.6,0.001342]
[1644705645573,0.501,2910.2,2910.0,0.01012687]
[1644705646574,0.501,2910.2,2909.6,0.001342]
[1644705646853,0.501,2910.2,2910.0,0.01012687]
[1644705647641,0.501,2910.2,2909.6,0.001342]
[1644705648041,0.501,2910.2,2910.0,0.01012687]
[1644705648842,0.501,2910.2,2909.6,0.001342]
[1644705649042,0.501,2910.2,2910.0,0.01012687]
[1644705650150,1.46192077,2910.1,2909.6,0.001342]
[1644705650350,1.96292077,2910.1,2910.0,0.01012687]
[1644705650570,6.19218273,2910.8,2910.0,0.01012687]
[1644705650571,2.21094377,2910.8,2910.0,0.01012687]
[1644705650768,1.46184582,2910.7,2910.0,0.01012687]
[1644705650968,4.96184582,2910.7,2910.0,0.01012687]
[1644705651172,1.46184582,2910.6,2910.0,0.01012687]
[1644705651368,1.46184582,2910.6,2909.7,0.01896353]
[1644705651568,1.46184582,2910.6,2910.2,0.01012655]
[1644705652573,4.76208697,2910.6,2909.7,0.01896353]
[1644705652773,1.46184582,2910.5,2910.3,0.01012649]
[1644705652974,1.41184582,2910.5,2910.3,0.01012649]
[1644705653178,10.0657205,2910.8,2910.3,0.01012649]
[1644705653576,10.05559607,2910.8,2909.7,0.01896353]
[1644705653974,10.06572083,2910.8,2910.3,0.01012682]
[1644705654844,10.06572083,2910.8,2909.6,0.001342]
[1644705654845,8.88579607,2910.8,2909.6,0.001342]
[1644705655043,8.89592083,2910.8,2910.3,0.01012682]
[1644705656046,8.88579607,2910.8,2909.6,0.001342]
[1644705656246,5.39592083,2910.8,2910.3,0.01012682]
[1644705657249,5.38579607,2910.8,2909.6,0.001342]
[1644705657451,5.39592083,2910.8,2910.3,0.01012682]
[1644705657650,5.56752083,2910.8,2910.3,0.01012682]